[Event "*** Titled Tuesday Blitz"]
[Site "Chess.com"]
[Date "2021.02.16"]
[Round "2"]
[White "jacky72"]
[Black "Elprofessor21"]
[Result "1-0"]
[WhiteElo "2699"]
[BlackElo "2446"]
[TimeControl "180+1"]
[EndTime "10:20:00 PST"]
[Termination "jacky72 won on time"]

1. d4 {[%clk 0:03:00.9]} 1... Nf6 {[%clk 0:02:59.5]} 2. c4 {[%clk 0:03:01.4]}
2... e6 {[%clk 0:02:59.6]} 3. Nf3 {[%clk 0:03:02]} 3... d5 {[%clk 0:02:59.7]} 4.
Nc3 {[%clk 0:03:02.5]} 4... Be7 {[%clk 0:03:00.1]} 5. Bg5 {[%clk 0:03:02.6]}
5... O-O {[%clk 0:02:58.2]} 6. cxd5 {[%clk 0:03:02.9]} 6... exd5 {[%clk
0:02:57.6]} 7. Qc2 {[%clk 0:03:03]} 7... h6 {[%clk 0:02:54.3]} 8. Bh4 {[%clk
0:03:02.7]} 8... c6 {[%clk 0:02:39.7]} 9. e3 {[%clk 0:03:02.7]} 9... Nbd7 {[%clk
0:02:39.7]} 10. Bd3 {[%clk 0:03:03.2]} 10... Re8 {[%clk 0:02:39]} 11. h3 {[%clk
0:02:55.6]} 11... Ne4 {[%clk 0:02:37.2]} 12. Bxe7 {[%clk 0:02:55.1]} 12... Qxe7
{[%clk 0:02:37.1]} 13. Bxe4 {[%clk 0:02:52.2]} 13... dxe4 {[%clk 0:02:37.2]} 14.
Nd2 {[%clk 0:02:53.1]} 14... f5 {[%clk 0:02:29]} 15. O-O {[%clk 0:02:50.6]}
15... Nf6 {[%clk 0:02:27]} 16. Rab1 {[%clk 0:02:49.7]} 16... Be6 {[%clk
0:02:19.7]} 17. b4 {[%clk 0:02:48]} 17... a6 {[%clk 0:02:06.1]} 18. Na4 {[%clk
0:02:47.8]} 18... Rad8 {[%clk 0:01:58.8]} 19. Nc5 {[%clk 0:02:44.4]} 19... Bd5
{[%clk 0:01:49.6]} 20. a4 {[%clk 0:02:39.4]} 20... Nh5 {[%clk 0:01:38.5]} 21. b5
{[%clk 0:02:36.1]} 21... axb5 {[%clk 0:01:32.3]} 22. axb5 {[%clk 0:02:37]} 22...
f4 {[%clk 0:01:24.2]} 23. bxc6 {[%clk 0:02:36.7]} 23... bxc6 {[%clk 0:01:17.4]}
24. Rb7 {[%clk 0:02:02.6]} 24... Qh4 {[%clk 0:01:16.7]} 25. Ra1 {[%clk
0:01:02.9]} 25... f3 {[%clk 0:01:00.1]} 26. gxf3 {[%clk 0:01:03.2]} 26... Rd6
{[%clk 0:00:35.2]} 27. Ndxe4 {[%clk 0:00:55.4]} 27... Qxh3 {[%clk 0:00:30.6]}
28. Nd2 {[%clk 0:00:21.1]} 28... Ng3 {[%clk 0:00:23.2]} 29. fxg3 {[%clk
0:00:17.8]} 29... Qxg3+ {[%clk 0:00:23.4]} 30. Kf1 {[%clk 0:00:18.7]} 30... Rg6
{[%clk 0:00:11.6]} 31. Ke2 {[%clk 0:00:15]} 31... Qh2+ {[%clk 0:00:11.2]} 32.
Kd3 {[%clk 0:00:15.4]} 32... Rg2 {[%clk 0:00:09]} 33. Nce4 {[%clk 0:00:12]}
33... Bxe4+ {[%clk 0:00:03.9]} 34. fxe4 {[%clk 0:00:11.3]} 34... Qh4 {[%clk
0:00:04.2]} 35. Raa7 {[%clk 0:00:09.4]} 35... Rg6 {[%clk 0:00:03.2]} 36. Qc4+
{[%clk 0:00:08.7]} 36... Kh7 {[%clk 0:00:02.7]} 37. Qc5 {[%clk 0:00:09.1]} 37...
Rg8 {[%clk 0:00:02.9]} 38. Qf5 {[%clk 0:00:08.7]} 38... Qh1 {[%clk 0:00:02.1]}
39. Rc7 {[%clk 0:00:05]} 39... Qh4 {[%clk 0:00:02.5]} 40. Rxc6 {[%clk 0:00:05]}
40... Qg5 {[%clk 0:00:02.1]} 41. Qxg5 {[%clk 0:00:03.8]} 41... hxg5 {[%clk
0:00:03]} 42. Rxg6 {[%clk 0:00:04.2]} 42... Kxg6 {[%clk 0:00:03.9]} 43. Ra6+
{[%clk 0:00:04.7]} 43... Kh5 {[%clk 0:00:04.8]} 44. e5 {[%clk 0:00:04.9]} 44...
g4 {[%clk 0:00:05.3]} 45. Ne4 {[%clk 0:00:05.4]} 45... Kh4 {[%clk 0:00:04.5]}
46. Ra1 {[%clk 0:00:05.9]} 46... g3 {[%clk 0:00:04.4]} 47. Rg1 {[%clk
0:00:06.4]} 47... g5 {[%clk 0:00:03.9]} 48. Rxg3 {[%clk 0:00:06.9]} 48... g4
{[%clk 0:00:04.8]} 49. e6 {[%clk 0:00:07]} 49... Rg6 {[%clk 0:00:03.9]} 50. d5
{[%clk 0:00:06.2]} 50... Rh6 {[%clk 0:00:03.9]} 51. Kd4 {[%clk 0:00:06.2]} 51...
Rh7 {[%clk 0:00:01.2]} 52. Rxg4+ {[%clk 0:00:05.5]} 1-0

[Event "*** Titled Tuesday Blitz"]
[Site "Chess.com"]
[Date "2021.02.16"]
[Round "2"]
[White "starplatinum2030"]
[Black "albi1999"]
[Result "0-1"]
[WhiteElo "2132"]
[BlackElo "2608"]
[TimeControl "180+1"]
[EndTime "10:20:03 PST"]
[Termination "albi1999 won by checkmate"]

1. e4 {[%clk 0:03:00.9]} 1... e5 {[%clk 0:02:50.7]} 2. Nf3 {[%clk 0:03:01.2]}
2... Nc6 {[%clk 0:02:50]} 3. Nc3 {[%clk 0:03:00.3]} 3... Nf6 {[%clk 0:02:48.3]}
4. d4 {[%clk 0:02:59]} 4... exd4 {[%clk 0:02:48.3]} 5. Nxd4 {[%clk 0:02:59.8]}
5... Bb4 {[%clk 0:02:47.1]} 6. Nxc6 {[%clk 0:02:58.3]} 6... bxc6 {[%clk
0:02:48]} 7. Bd3 {[%clk 0:02:58.3]} 7... d5 {[%clk 0:02:46.4]} 8. exd5 {[%clk
0:02:59.2]} 8... O-O {[%clk 0:02:45.9]} 9. O-O {[%clk 0:02:59.3]} 9... cxd5
{[%clk 0:02:38.9]} 10. Bg5 {[%clk 0:02:58.1]} 10... c6 {[%clk 0:02:38.6]} 11.
Qf3 {[%clk 0:02:56.6]} 11... h6 {[%clk 0:02:38.1]} 12. Bxf6 {[%clk 0:02:56.2]}
12... Qxf6 {[%clk 0:02:39]} 13. Qxf6 {[%clk 0:02:55.3]} 13... gxf6 {[%clk
0:02:39.9]} 14. Na4 {[%clk 0:02:49.9]} 14... Bd6 {[%clk 0:02:36.6]} 15. Rad1
{[%clk 0:02:43.1]} 15... Rb8 {[%clk 0:02:34.2]} 16. b3 {[%clk 0:02:42.5]} 16...
Be6 {[%clk 0:02:32.7]} 17. Rfe1 {[%clk 0:02:39]} 17... Rfd8 {[%clk 0:02:30.2]}
18. Be2 {[%clk 0:02:31.3]} 18... Bb4 {[%clk 0:02:26.8]} 19. c3 {[%clk
0:02:30.3]} 19... Bf8 {[%clk 0:02:25.8]} 20. Bf3 {[%clk 0:02:30.4]} 20... c5
{[%clk 0:02:20.9]} 21. c4 {[%clk 0:02:23.8]} 21... dxc4 {[%clk 0:02:16.3]} 22.
bxc4 {[%clk 0:02:21.9]} 22... Bxc4 {[%clk 0:02:12.6]} 23. Rc1 {[%clk 0:02:20.8]}
23... Rb4 {[%clk 0:02:11.7]} 24. Bc6 {[%clk 0:02:13.2]} 24... Bxa2 {[%clk
0:01:56]} 25. Nxc5 {[%clk 0:02:11.1]} 25... Bxc5 {[%clk 0:01:38.8]} 26. Rxc5
{[%clk 0:02:10]} 26... Be6 {[%clk 0:01:29.7]} 27. Ra5 {[%clk 0:02:05.2]} 27...
Rb6 {[%clk 0:01:24.8]} 28. Bf3 {[%clk 0:02:00.5]} 28... Rd7 {[%clk 0:01:23.8]}
29. h3 {[%clk 0:01:57]} 29... Bc4 {[%clk 0:01:18.9]} 30. Rc1 {[%clk 0:01:54.8]}
30... Bb5 {[%clk 0:01:16.2]} 31. Rb1 {[%clk 0:01:52.3]} 31... a6 {[%clk
0:01:15.2]} 32. Bg4 {[%clk 0:01:45.4]} 32... Re7 {[%clk 0:01:13.2]} 33. Ra3
{[%clk 0:01:40.6]} 33... Rd6 {[%clk 0:01:11.4]} 34. Bf5 {[%clk 0:01:38.1]} 34...
Re5 {[%clk 0:01:10.3]} 35. Rg3+ {[%clk 0:01:31.3]} 35... Kf8 {[%clk 0:01:08.7]}
36. Rf3 {[%clk 0:01:29.2]} 36... Kg7 {[%clk 0:01:00.4]} 37. Rc1 {[%clk
0:01:27.7]} 37... Rd4 {[%clk 0:00:55.9]} 38. Rg3+ {[%clk 0:01:26.7]} 38... Kf8
{[%clk 0:00:55.7]} 39. Rc8+ {[%clk 0:01:26]} 39... Ke7 {[%clk 0:00:56]} 40. Bg4
{[%clk 0:01:05.2]} 40... f5 {[%clk 0:00:47.1]} 41. Bf3 {[%clk 0:00:55.2]} 41...
Kf6 {[%clk 0:00:45.4]} 42. Rgg8 {[%clk 0:00:47.7]} 42... Bd7 {[%clk 0:00:40.9]}
43. Ra8 {[%clk 0:00:41.2]} 43... a5 {[%clk 0:00:39.6]} 44. Rh8 {[%clk
0:00:39.7]} 44... Re1+ {[%clk 0:00:35.4]} 45. Kh2 {[%clk 0:00:39]} 45... a4
{[%clk 0:00:36.3]} 46. Rxh6+ {[%clk 0:00:37.2]} 46... Ke7 {[%clk 0:00:37.2]} 47.
Rha6 {[%clk 0:00:34]} 47... Re6 {[%clk 0:00:32.5]} 48. R6a7 {[%clk 0:00:33.2]}
48... Red6 {[%clk 0:00:31.1]} 49. Kg3 {[%clk 0:00:20.7]} 49... Kf6 {[%clk
0:00:31.3]} 50. Be2 {[%clk 0:00:16.7]} 50... f4+ {[%clk 0:00:31]} 51. Kh2 {[%clk
0:00:16.5]} 51... Rd2 {[%clk 0:00:30.2]} 52. Bf3 {[%clk 0:00:15.9]} 52... Rxf2
{[%clk 0:00:29.5]} 53. Bg4 {[%clk 0:00:12.4]} 53... Bxg4 {[%clk 0:00:28]} 54.
hxg4 {[%clk 0:00:13.3]} 54... Rdd2 {[%clk 0:00:25.2]} 55. Ra6+ {[%clk 0:00:10]}
55... Kg7 {[%clk 0:00:24.7]} 56. Rxa4 {[%clk 0:00:09.1]} 56... Rxg2+ {[%clk
0:00:24.6]} 57. Kh3 {[%clk 0:00:08.7]} 57... Rh2# {[%clk 0:00:24.9]} 0-1

[Event "*** Titled Tuesday Blitz"]
[Site "Chess.com"]
[Date "2021.02.16"]
[Round "2"]
[White "night_player"]
[Black "sakkikuska"]
[Result "0-1"]
[WhiteElo "2162"]
[BlackElo "2484"]
[TimeControl "180+1"]
[EndTime "10:20:08 PST"]
[Termination "sakkikuska won on time"]

1. e4 {[%clk 0:03:00.9]} 1... c5 {[%clk 0:02:59.8]} 2. c3 {[%clk 0:03:00.8]}
2... d5 {[%clk 0:02:59.4]} 3. exd5 {[%clk 0:03:00.8]} 3... Qxd5 {[%clk
0:03:00.2]} 4. d4 {[%clk 0:03:01.5]} 4... Nf6 {[%clk 0:02:59.5]} 5. Nf3 {[%clk
0:03:01.5]} 5... e6 {[%clk 0:02:59.7]} 6. Be3 {[%clk 0:03:01]} 6... cxd4 {[%clk
0:02:59]} 7. cxd4 {[%clk 0:03:01.9]} 7... Nc6 {[%clk 0:02:58.1]} 8. Nc3 {[%clk
0:03:02.3]} 8... Qd7 {[%clk 0:02:51.8]} 9. Bd3 {[%clk 0:03:02.1]} 9... Be7
{[%clk 0:02:52]} 10. O-O {[%clk 0:02:57.8]} 10... h6 {[%clk 0:02:51.6]} 11. Rc1
{[%clk 0:02:57]} 11... Nd5 {[%clk 0:02:51.2]} 12. a3 {[%clk 0:02:56.3]} 12...
Nxc3 {[%clk 0:02:46.8]} 13. Rxc3 {[%clk 0:02:53.1]} 13... Bf6 {[%clk 0:02:46.6]}
14. Bb1 {[%clk 0:02:52.7]} 14... O-O {[%clk 0:02:46]} 15. Qd3 {[%clk 0:02:53.2]}
15... g6 {[%clk 0:02:44]} 16. Bxh6 {[%clk 0:02:53.1]} 16... Rd8 {[%clk
0:02:43.8]} 17. Rd1 {[%clk 0:02:48.1]} 17... Nxd4 {[%clk 0:02:34.2]} 18. Nxd4
{[%clk 0:02:37.4]} 18... Qxd4 {[%clk 0:02:32]} 19. Qxd4 {[%clk 0:02:18]} 19...
Rxd4 {[%clk 0:02:32.9]} 20. Rxd4 {[%clk 0:01:51.7]} 20... Bxd4 {[%clk
0:02:33.8]} 21. Rc2 {[%clk 0:01:40.6]} 21... e5 {[%clk 0:02:29.5]} 22. Rd2
{[%clk 0:01:37.8]} 22... Be6 {[%clk 0:02:22.8]} 23. h3 {[%clk 0:01:08.2]} 23...
Rc8 {[%clk 0:02:18.6]} 24. Kh2 {[%clk 0:01:07.5]} 24... f5 {[%clk 0:01:36.3]}
25. Be3 {[%clk 0:00:53.2]} 25... Bxe3 {[%clk 0:01:32.3]} 26. fxe3 {[%clk
0:00:53.6]} 26... Kf7 {[%clk 0:01:31.3]} 27. Kg3 {[%clk 0:00:53.4]} 27... Rc1
{[%clk 0:01:27.8]} 28. Bd3 {[%clk 0:00:50.2]} 28... Ke7 {[%clk 0:01:25.2]} 29.
Kf2 {[%clk 0:00:49.3]} 29... b6 {[%clk 0:01:01.3]} 30. Ke2 {[%clk 0:00:39.3]}
30... Bb3 {[%clk 0:00:49.5]} 31. Bb5 {[%clk 0:00:35.1]} 31... Ke6 {[%clk
0:00:41]} 32. Bd7+ {[%clk 0:00:31]} 32... Ke7 {[%clk 0:00:39.9]} 33. Bb5 {[%clk
0:00:30.6]} 33... Bc4+ {[%clk 0:00:39.8]} 34. Bxc4 {[%clk 0:00:30.3]} 34... Rxc4
{[%clk 0:00:40.7]} 35. Kd3 {[%clk 0:00:30.2]} 35... Rc1 {[%clk 0:00:27.2]} 36.
Re2 {[%clk 0:00:20.3]} 36... Kd6 {[%clk 0:00:25.6]} 37. e4 {[%clk 0:00:15.9]}
37... Rg1 {[%clk 0:00:21]} 38. exf5 {[%clk 0:00:14.7]} 38... gxf5 {[%clk
0:00:21.9]} 39. Ke3 {[%clk 0:00:15.6]} 39... Ke6 {[%clk 0:00:20.3]} 40. Kf3
{[%clk 0:00:15.3]} 40... Rf1+ {[%clk 0:00:19]} 41. Kg3 {[%clk 0:00:15.1]} 41...
e4 {[%clk 0:00:19.3]} 42. h4 {[%clk 0:00:14.8]} 42... Ke5 {[%clk 0:00:19.3]} 43.
Rc2 {[%clk 0:00:12.6]} 43... e3 {[%clk 0:00:15.6]} 44. h5 {[%clk 0:00:12.3]}
44... f4+ {[%clk 0:00:12.9]} 45. Kh2 {[%clk 0:00:11.6]} 45... Rf2 {[%clk
0:00:11.3]} 46. Rc8 {[%clk 0:00:10.2]} 46... Kf6 {[%clk 0:00:05.4]} 47. h6
{[%clk 0:00:07.4]} 47... Kg6 {[%clk 0:00:04.1]} 48. Rc6+ {[%clk 0:00:08]} 48...
Kh7 {[%clk 0:00:04.2]} 49. Kg1 {[%clk 0:00:02.6]} 49... Rxb2 {[%clk 0:00:04.7]}
50. g3 {[%clk 0:00:01.4]} 50... Rb1+ {[%clk 0:00:05.1]} 51. Kg2 {[%clk
0:00:01.6]} 51... e2 {[%clk 0:00:05.8]} 0-1

[Event "*** Titled Tuesday Blitz"]
[Site "Chess.com"]
[Date "2021.02.16"]
[Round "2"]
[White "gross-aleks"]
[Black "exoticprincess"]
[Result "1/2-1/2"]
[WhiteElo "2572"]
[BlackElo "2909"]
[TimeControl "180+1"]
[EndTime "10:20:09 PST"]
[Termination "Game drawn - insufficient material"]

1. c4 {[%clk 0:03:00.9]} 1... c6 {[%clk 0:03:00.9]} 2. Nf3 {[%clk 0:03:00.2]}
2... d5 {[%clk 0:03:01.8]} 3. e3 {[%clk 0:03:00.7]} 3... Nf6 {[%clk 0:02:58.4]}
4. Nc3 {[%clk 0:03:00.7]} 4... g6 {[%clk 0:02:58.7]} 5. d4 {[%clk 0:03:00]} 5...
Bg7 {[%clk 0:02:59.3]} 6. cxd5 {[%clk 0:02:59.3]} 6... Nxd5 {[%clk 0:02:58.1]}
7. Nxd5 {[%clk 0:02:58.5]} 7... cxd5 {[%clk 0:02:57.7]} 8. Bd2 {[%clk
0:02:52.6]} 8... Nc6 {[%clk 0:02:55]} 9. Be2 {[%clk 0:02:52.5]} 9... O-O {[%clk
0:02:54.5]} 10. O-O {[%clk 0:02:51.5]} 10... Qb6 {[%clk 0:02:49.1]} 11. Qb3
{[%clk 0:02:46.9]} 11... Qxb3 {[%clk 0:02:44.4]} 12. axb3 {[%clk 0:02:47.8]}
12... Bd7 {[%clk 0:02:43.4]} 13. b4 {[%clk 0:02:29.7]} 13... a6 {[%clk
0:02:41.5]} 14. b5 {[%clk 0:02:27.7]} 14... axb5 {[%clk 0:02:42.4]} 15. Bxb5
{[%clk 0:02:26.9]} 15... Rfc8 {[%clk 0:02:38.9]} 16. Bxc6 {[%clk 0:02:21.4]}
16... Bxc6 {[%clk 0:02:37.9]} 17. Bb4 {[%clk 0:02:21.4]} 17... Bb5 {[%clk
0:02:32.5]} 18. Rxa8 {[%clk 0:02:19.2]} 18... Rxa8 {[%clk 0:02:32]} 19. Rc1
{[%clk 0:02:18.8]} 19... e6 {[%clk 0:02:22.7]} 20. h3 {[%clk 0:02:08.7]} 20...
Bf6 {[%clk 0:02:16.8]} 21. Rc7 {[%clk 0:01:59.9]} 21... Bd8 {[%clk 0:02:14.9]}
22. Rc1 {[%clk 0:01:50.2]} 22... f6 {[%clk 0:02:13.6]} 23. Nd2 {[%clk
0:01:42.5]} 23... Kf7 {[%clk 0:02:11]} 24. Nb3 {[%clk 0:01:41.4]} 24... b6
{[%clk 0:02:10.7]} 25. Nd2 {[%clk 0:01:37.7]} 25... Ke8 {[%clk 0:02:09.6]} 26.
Nb1 {[%clk 0:01:30.6]} 26... Kd7 {[%clk 0:02:08.4]} 27. Na3 {[%clk 0:01:26.2]}
27... Bd3 {[%clk 0:02:05.9]} 28. Rc3 {[%clk 0:01:21.9]} 28... Ba6 {[%clk
0:02:04.1]} 29. f3 {[%clk 0:01:13.1]} 29... Rc8 {[%clk 0:02:03.2]} 30. Rxc8
{[%clk 0:01:11.5]} 30... Kxc8 {[%clk 0:02:04.1]} 31. Kf2 {[%clk 0:01:11]} 31...
Kd7 {[%clk 0:02:04.7]} 32. Nb1 {[%clk 0:01:09]} 32... h5 {[%clk 0:02:03]} 33. h4
{[%clk 0:01:04.8]} 33... e5 {[%clk 0:01:57.1]} 34. Nc3 {[%clk 0:01:02.1]} 34...
Ke6 {[%clk 0:01:57.1]} 35. g3 {[%clk 0:00:57]} 35... Bd3 {[%clk 0:01:55.1]} 36.
f4 {[%clk 0:00:53.8]} 36... e4 {[%clk 0:01:49.3]} 37. Kg2 {[%clk 0:00:44]} 37...
g5 {[%clk 0:01:49.1]} 38. Na4 {[%clk 0:00:33.5]} 38... Bc2 {[%clk 0:01:46.1]}
39. Nc3 {[%clk 0:00:33.3]} 39... Bd3 {[%clk 0:01:44.3]} 40. Na4 {[%clk
0:00:32.8]} 40... Kf5 {[%clk 0:01:38.6]} 41. Nc3 {[%clk 0:00:29.9]} 41... Bc4
{[%clk 0:01:38.5]} 42. fxg5 {[%clk 0:00:24.1]} 42... fxg5 {[%clk 0:01:38.1]} 43.
hxg5 {[%clk 0:00:24.3]} 43... Bxg5 {[%clk 0:01:38.3]} 44. Kf2 {[%clk 0:00:24.6]}
44... Kg4 {[%clk 0:01:32.4]} 45. Bd6 {[%clk 0:00:23.9]} 45... Kh3 {[%clk
0:01:23.3]} 46. Na4 {[%clk 0:00:19.9]} 46... b5 {[%clk 0:01:22.6]} 47. Nb6
{[%clk 0:00:20]} 47... h4 {[%clk 0:01:21.6]} 48. Nxc4 {[%clk 0:00:19.9]} 48...
bxc4 {[%clk 0:01:17.9]} 49. gxh4 {[%clk 0:00:19.5]} 49... Bxh4+ {[%clk
0:01:18.8]} 50. Ke2 {[%clk 0:00:20.1]} 50... Kg2 {[%clk 0:01:18.6]} 51. Be5
{[%clk 0:00:18.6]} 51... Be7 {[%clk 0:01:17.9]} 52. Bc7 {[%clk 0:00:18]} 52...
Bg5 {[%clk 0:01:12.8]} 53. Bd6 {[%clk 0:00:17.9]} 53... Kh3 {[%clk 0:01:12.2]}
54. Bb4 {[%clk 0:00:17]} 54... Kg4 {[%clk 0:01:12.1]} 55. Bd2 {[%clk 0:00:17]}
55... Kf5 {[%clk 0:01:12.3]} 56. Be1 {[%clk 0:00:17.4]} 56... Ke6 {[%clk
0:01:12.1]} 57. Bf2 {[%clk 0:00:17.9]} 57... Kd6 {[%clk 0:01:12.5]} 58. Kd2
{[%clk 0:00:18.5]} 58... Kc6 {[%clk 0:01:13]} 59. Kc3 {[%clk 0:00:18.9]} 59...
Kb5 {[%clk 0:01:13]} 60. b3 {[%clk 0:00:19.8]} 60... cxb3 {[%clk 0:01:09.2]} 61.
Kxb3 {[%clk 0:00:19.8]} 61... Bh6 {[%clk 0:01:10.1]} 62. Kc3 {[%clk 0:00:20.1]}
62... Ka4 {[%clk 0:01:09.8]} 63. Kd2 {[%clk 0:00:20.2]} 63... Kb3 {[%clk
0:01:09.5]} 64. Ke2 {[%clk 0:00:20.5]} 64... Kc4 {[%clk 0:01:09.4]} 65. Bg3
{[%clk 0:00:20.3]} 65... Bg5 {[%clk 0:01:00.6]} 66. Bf2 {[%clk 0:00:19.6]} 66...
Kb5 {[%clk 0:00:57.3]} 67. Bg3 {[%clk 0:00:19.7]} 67... Kc6 {[%clk 0:00:58.2]}
68. Bh2 {[%clk 0:00:19.9]} 68... Kd7 {[%clk 0:00:58.5]} 69. Bg3 {[%clk
0:00:20.2]} 69... Ke6 {[%clk 0:00:59]} 70. Bh2 {[%clk 0:00:20.7]} 70... Kf5
{[%clk 0:00:59.5]} 71. Bg3 {[%clk 0:00:21.1]} 71... Kg4 {[%clk 0:00:59.8]} 72.
Bb8 {[%clk 0:00:21.4]} 72... Be7 {[%clk 0:00:59.6]} 73. Bc7 {[%clk 0:00:21.3]}
73... Bb4 {[%clk 0:00:58.4]} 74. Bb8 {[%clk 0:00:21.4]} 74... Kf5 {[%clk
0:00:57.4]} 75. Bh2 {[%clk 0:00:20.8]} 75... Ba5 {[%clk 0:00:57.4]} 76. Bb8
{[%clk 0:00:21.7]} 76... Bb6 {[%clk 0:00:56.4]} 77. Bh2 {[%clk 0:00:22.6]} 77...
Ke6 {[%clk 0:00:56.7]} 78. Bf4 {[%clk 0:00:22.8]} 78... Kd7 {[%clk 0:00:57]} 79.
Be5 {[%clk 0:00:23.1]} 79... Kc6 {[%clk 0:00:57.5]} 80. Bf4 {[%clk 0:00:23.2]}
80... Kb5 {[%clk 0:00:57.9]} 81. Bb8 {[%clk 0:00:22.9]} 81... Kc4 {[%clk
0:00:58.8]} 82. Bh2 {[%clk 0:00:23]} 82... Bxd4 {[%clk 0:00:59.3]} 83. exd4
{[%clk 0:00:22.7]} 83... Kxd4 {[%clk 0:01:00.2]} 84. Bg1+ {[%clk 0:00:22.6]}
84... e3 {[%clk 0:01:01.1]} 85. Bxe3+ {[%clk 0:00:22.1]} 85... Ke4 {[%clk
0:01:02]} 86. Kd2 {[%clk 0:00:22]} 86... d4 {[%clk 0:01:02.9]} 87. Bxd4 {[%clk
0:00:22.1]} 1/2-1/2

[Event "*** Titled Tuesday Blitz"]
[Site "Chess.com"]
[Date "2021.02.16"]
[Round "2"]
[White "A-Fier"]
[Black "maxip32"]
[Result "1-0"]
[WhiteElo "2806"]
[BlackElo "2503"]
[TimeControl "180+1"]
[EndTime "10:20:09 PST"]
[Termination "A-Fier won on time"]

1. d4 {[%clk 0:03:00.9]} 1... Nf6 {[%clk 0:02:58.8]} 2. Bg5 {[%clk 0:03:00.4]}
2... c5 {[%clk 0:02:58]} 3. Bxf6 {[%clk 0:02:59.8]} 3... gxf6 {[%clk 0:02:58.9]}
4. d5 {[%clk 0:03:00.3]} 4... Na6 {[%clk 0:02:45.2]} 5. g3 {[%clk 0:02:47.7]}
5... Qb6 {[%clk 0:02:43.7]} 6. Qc1 {[%clk 0:02:47.5]} 6... f5 {[%clk 0:02:35.5]}
7. Bg2 {[%clk 0:02:47]} 7... Bg7 {[%clk 0:02:35.7]} 8. c3 {[%clk 0:02:47.3]}
8... Nc7 {[%clk 0:01:55.7]} 9. Nh3 {[%clk 0:02:46.2]} 9... Qd6 {[%clk
0:01:52.6]} 10. Nf4 {[%clk 0:02:45.2]} 10... b5 {[%clk 0:01:45.3]} 11. Na3
{[%clk 0:02:42.2]} 11... a6 {[%clk 0:01:44.6]} 12. O-O {[%clk 0:02:41.8]} 12...
Bb7 {[%clk 0:01:44.2]} 13. Rd1 {[%clk 0:02:41.4]} 13... O-O {[%clk 0:01:42]} 14.
Nc2 {[%clk 0:02:41.6]} 14... Bh6 {[%clk 0:01:20.9]} 15. Bh3 {[%clk 0:02:30.6]}
15... Bxf4 {[%clk 0:01:00]} 16. gxf4 {[%clk 0:02:29.4]} 16... Nxd5 {[%clk
0:00:55.2]} 17. Bxf5 {[%clk 0:02:24.6]} 17... Qf6 {[%clk 0:00:40.8]} 18. e4
{[%clk 0:02:23.2]} 18... Nb6 {[%clk 0:00:35]} 19. Ne3 {[%clk 0:02:22.2]} 19...
Kh8 {[%clk 0:00:34.6]} 20. Kf1 {[%clk 0:02:14.4]} 20... e6 {[%clk 0:00:31.6]}
21. e5 {[%clk 0:02:09.3]} 21... Qh4 {[%clk 0:00:30.5]} 22. Bg4 {[%clk
0:02:09.3]} 22... h5 {[%clk 0:00:29.1]} 23. Be2 {[%clk 0:02:04.1]} 23... Qxh2
{[%clk 0:00:27.4]} 24. Ke1 {[%clk 0:02:03.8]} 24... Qxf4 {[%clk 0:00:23.1]} 25.
Rd6 {[%clk 0:02:04.3]} 25... Bc6 {[%clk 0:00:20.9]} 26. Qd2 {[%clk 0:01:54.8]}
26... Rg8 {[%clk 0:00:19.4]} 27. Nf1 {[%clk 0:01:52.1]} 27... Qxd2+ {[%clk
0:00:18.9]} 28. Kxd2 {[%clk 0:01:52]} 28... Rg5 {[%clk 0:00:18.9]} 29. f4 {[%clk
0:01:50.5]} 29... Rf5 {[%clk 0:00:19.2]} 30. Ng3 {[%clk 0:01:47.6]} 30... Rxf4
{[%clk 0:00:19.6]} 31. Nxh5 {[%clk 0:01:47.8]} 31... Rf5 {[%clk 0:00:18.2]} 32.
Rd3 {[%clk 0:01:44.6]} 32... Rxe5 {[%clk 0:00:16.4]} 33. Rh3 {[%clk 0:01:44.5]}
33... Kg8 {[%clk 0:00:16.4]} 34. Rg1+ {[%clk 0:01:41]} 34... Kf8 {[%clk
0:00:16.3]} 35. Nf6 {[%clk 0:01:35.1]} 35... Ke7 {[%clk 0:00:15.8]} 36. Ng4
{[%clk 0:01:35.7]} 36... Rf5 {[%clk 0:00:14.9]} 37. Ne3 {[%clk 0:01:35.2]} 37...
Rf6 {[%clk 0:00:13.9]} 38. Rg7 {[%clk 0:01:31.9]} 38... Nd5 {[%clk 0:00:14]} 39.
Ng4 {[%clk 0:01:32]} 39... Rg6 {[%clk 0:00:14.1]} 40. Rxg6 {[%clk 0:01:31.7]}
40... fxg6 {[%clk 0:00:15]} 41. Ne5 {[%clk 0:01:32]} 41... g5 {[%clk 0:00:14.5]}
42. Rh7+ {[%clk 0:01:28.4]} 42... Kd6 {[%clk 0:00:14.8]} 43. Nf7+ {[%clk
0:01:28.2]} 43... Kc7 {[%clk 0:00:14.9]} 44. Nxg5 {[%clk 0:01:29.1]} 44... Kb6
{[%clk 0:00:12.1]} 45. Bf3 {[%clk 0:01:28.1]} 45... Rg8 {[%clk 0:00:11.7]} 46.
Nf7 {[%clk 0:01:27.7]} 46... Rg3 {[%clk 0:00:11]} 47. Bh1 {[%clk 0:01:18.6]}
47... Rg1 {[%clk 0:00:07.9]} 48. Rh6 {[%clk 0:01:11]} 48... Rf1 {[%clk
0:00:07.6]} 49. Ne5 {[%clk 0:01:10.6]} 49... Rf2+ {[%clk 0:00:07.7]} 50. Kc1
{[%clk 0:01:10]} 50... Ne3 {[%clk 0:00:07.7]} 51. Bxc6 {[%clk 0:01:09.3]} 51...
dxc6 {[%clk 0:00:06.4]} 52. Rxe6 {[%clk 0:01:06.3]} 52... Rc2+ {[%clk
0:00:06.1]} 53. Kb1 {[%clk 0:01:06.5]} 53... Re2 {[%clk 0:00:06.5]} 54. b3
{[%clk 0:01:01.6]} 54... Ng4 {[%clk 0:00:05.6]} 55. Nd7+ {[%clk 0:01:01.3]}
55... Kc7 {[%clk 0:00:03.9]} 56. Rxe2 {[%clk 0:01:02.2]} 56... Kxd7 {[%clk
0:00:04.6]} 57. Kb2 {[%clk 0:01:01.3]} 57... Nf6 {[%clk 0:00:04.6]} 58. Rh2
{[%clk 0:01:01.2]} 58... Nd5 {[%clk 0:00:04.3]} 59. Rh6 {[%clk 0:01:01]} 59...
Kc7 {[%clk 0:00:04.4]} 60. c4 {[%clk 0:01:00]} 60... Ne7 {[%clk 0:00:02.3]} 61.
Kc3 {[%clk 0:00:59.6]} 61... Nc8 {[%clk 0:00:02.1]} 62. Rh7+ {[%clk 0:00:59.4]}
62... Kb6 {[%clk 0:00:02]} 63. Rd7 {[%clk 0:00:56.6]} 63... Na7 {[%clk
0:00:01.1]} 64. a3 {[%clk 0:00:55.1]} 64... a5 {[%clk 0:00:01.6]} 65. a4 {[%clk
0:00:54.3]} 65... b4+ {[%clk 0:00:02.5]} 66. Kd3 {[%clk 0:00:54]} 66... Nc8
{[%clk 0:00:03.2]} 67. Ke4 {[%clk 0:00:54.2]} 67... Na7 {[%clk 0:00:04.1]} 68.
Ke5 {[%clk 0:00:54.2]} 68... Nc8 {[%clk 0:00:05]} 69. Ke6 {[%clk 0:00:54.6]}
69... Ka6 {[%clk 0:00:05.3]} 70. Rd8 {[%clk 0:00:50.4]} 70... Kb7 {[%clk
0:00:04.9]} 71. Kd7 {[%clk 0:00:48.7]} 71... Nb6+ {[%clk 0:00:04.7]} 72. Kd6
{[%clk 0:00:48.2]} 72... Nc8+ {[%clk 0:00:05.6]} 73. Kxc5 {[%clk 0:00:48.3]} 1-0